bitfinex/quotes_SOLUSD_20230702
["timestamp","ask_amount","ask_price","bid_price","bid_amount"]
[1688325744625,21.893,19.321,19.315,55.0]
[1688325748019,21.883,19.33,19.315,133.28]
[1688325748229,21.883,19.33,19.324,21.889]
[1688325748429,21.883,19.33,19.326,21.887]
[1688325748629,56.321,19.336,19.326,21.887]
[1688325748630,21.881,19.332,19.326,21.887]
[1688325748835,56.321,19.336,19.326,21.887]
[1688325749031,21.879,19.333,19.326,21.887]
[1688325751440,21.878,19.335,19.327,55.0]
[1688325751733,21.877,19.336,19.329,21.883]
[1688325751938,21.877,19.336,19.331,21.881]
[1688325758443,7.82458417,19.345,19.331,21.881]
[1688325758652,21.87,19.341,19.332,55.0]
[1688325758832,21.87,19.341,19.335,21.876]
[1688325762144,21.869,19.343,19.335,21.876]
[1688325762344,56.28,19.35,19.336,55.0]
[1688325762531,21.864,19.347,19.34,21.871]
[1688325762727,21.862,19.349,19.341,55.0]
[1688325763028,21.862,19.349,19.342,21.869]
[1688325768848,21.862,19.349,19.336,56.318]
[1688325769047,21.862,19.349,19.337,85.0]
[1688325769635,20.0,19.348,19.337,30.0]
[1688325769941,21.866,19.345,19.337,21.875]
[1688325770137,21.869,19.342,19.334,30.0]
[1688325770342,21.869,19.342,19.336,21.876]
[1688325771050,21.869,19.342,19.331,198.1788]
[1688325771051,21.869,19.342,19.331,151.7228]
[1688325771252,21.869,19.342,19.332,30.0]
[1688325772056,21.869,19.342,19.335,21.877]
[1688325773042,21.869,19.342,19.334,21.878]
[1688325775454,78.193,19.337,19.31,22.41]
[1688325775637,51.73948715,19.336,19.317,93.0118]
[1688325775837,21.885,19.328,19.315,56.378]
[1688325777255,21.885,19.328,19.318,21.896]
[1688325777465,21.885,19.328,19.319,55.0]
[1688325777652,21.885,19.328,19.319,76.895]
[1688325778858,20.0,19.327,19.309,102.9]
[1688325779057,21.892,19.322,19.315,21.899]
[1688325779261,21.892,19.322,19.312,21.903]
[1688325780645,21.892,19.322,19.313,76.902]
[1688325783248,21.892,19.322,19.306,102.92]
[1688325783566,21.892,19.322,19.31,21.904]
[1688325784567,21.892,19.322,19.312,21.903]
[1688325784867,21.892,19.322,19.313,55.0]
[1688325787353,21.892,19.322,19.315,21.899]
[1688325787556,21.892,19.322,19.316,55.0]
[1688325787759,21.892,19.322,19.316,76.898]
[1688325791067,21.892,19.322,19.316,55.0]
[1688325791562,21.892,19.322,19.313,21.901]
[1688325791777,21.892,19.322,19.314,55.0]
[1688325791971,21.892,19.322,19.314,76.901]
[1688325796470,21.892,19.322,19.31,21.905]
[1688325796664,21.892,19.322,19.311,55.0]
[1688325798764,21.892,19.322,19.311,76.904]
[1688325811488,21.892,19.322,19.311,21.904]
[1688325811673,21.892,19.322,19.309,99.3342]
[1688325811985,21.892,19.322,19.31,76.905]
[1688325821390,21.897,19.317,19.31,76.905]
[1688325827803,21.897,19.317,19.31,21.905]
[1688325828193,21.897,19.317,19.306,56.405]
[1688325828495,21.897,19.317,19.309,21.906]
[1688325828897,21.901,19.314,19.309,21.906]
[1688325829099,21.901,19.314,19.303,102.932]
[1688325829100,21.901,19.314,19.308,21.907]
[1688325830397,21.901,19.314,19.307,21.908]
[1688325830598,21.901,19.314,19.308,55.0]
[1688325833503,21.901,19.314,19.307,55.0]
[1688325835205,21.901,19.314,19.306,55.0]
[1688325836906,21.901,19.314,19.305,55.0]
[1688325837508,21.901,19.314,19.301,113.3568]
[1688325838208,29.72558417,19.314,19.297,25.81429572]
[1688325838507,181.234,19.307,19.296,21.92]
[1688325838710,20.0,19.306,19.296,21.92]
[1688325839008,21.913,19.303,19.296,21.92]
[1688325839598,21.913,19.303,19.297,55.0]
[1688325842014,21.913,19.303,19.296,55.0]
[1688325852812,21.913,19.303,19.295,55.0]
[1688325853925,21.913,19.303,19.295,50.0]
[1688325856111,21.913,19.303,19.295,71.922]
[1688325871434,21.913,19.303,19.295,71.422]
[1688325873236,21.913,19.303,19.295,70.922]
[1688325874132,21.913,19.303,19.295,49.0]
[1688325874326,21.913,19.303,19.293,21.923]
[1688325875427,21.913,19.303,19.294,55.0]
[1688325875931,21.913,19.303,19.294,76.923]
[1688325887950,21.913,19.303,19.294,55.0]
[1688325893153,21.913,19.303,19.294,76.923]
[1688325894559,21.913,19.303,19.292,21.925]
[1688325894856,21.913,19.303,19.293,55.0]
[1688325899459,21.913,19.303,19.293,76.924]
[1688325900864,21.913,19.303,19.293,55.0]
[1688325901363,21.913,19.303,19.292,55.0]
[1688325901751,21.913,19.303,19.292,76.925]
[1688325902663,21.913,19.303,19.292,21.925]
[1688325903954,21.912,19.305,19.297,21.919]
[1688325904168,20.0,19.304,19.298,55.0]
[1688325904465,20.0,19.304,19.3,21.916]
[1688325905378,41.912,19.304,19.3,21.916]
[1688325906977,41.912,19.304,19.299,21.918]
[1688325907273,41.912,19.304,19.3,55.0]
[1688325910275,41.912,19.304,19.299,55.0]
[1688325915964,41.912,19.304,19.298,55.0]
[1688325917678,41.912,19.304,19.296,21.921]
[1688325917865,41.912,19.304,19.297,55.0]
[1688325918164,41.912,19.304,19.296,55.0]
[1688325919582,41.912,19.304,19.296,76.921]
[1688325921574,41.912,19.304,19.295,21.922]
[1688325924975,41.912,19.304,19.296,55.0]
[1688325925183,41.912,19.304,19.297,21.919]
[1688325928593,41.912,19.304,19.298,55.0]
[1688325928886,41.912,19.304,19.299,21.918]
[1688325929194,41.912,19.304,19.3,55.0]
[1688325930794,41.912,19.304,19.3,76.916]
[1688325938683,41.912,19.304,19.3,55.0]
[1688325938884,21.912,19.304,19.3,76.916]
[1688325941188,56.403,19.308,19.3,76.916]
[1688325941592,56.403,19.308,19.293,195.9571]
[1688325941593,21.912,19.304,19.293,92.9681]
[1688325941796,21.916,19.301,19.296,21.921]
[1688325944097,21.916,19.301,19.295,21.922]
[1688325944296,21.916,19.301,19.296,55.0]
[1688325949504,21.916,19.301,19.295,21.922]
[1688325950502,21.916,19.301,19.294,21.923]
[1688325950801,21.916,19.301,19.293,21.924]
[1688325951008,21.916,19.301,19.294,55.0]
[1688325951207,21.916,19.301,19.294,76.923]
[1688325953007,21.916,19.301,19.294,21.923]
[1688325953605,22.37,19.3,19.292,21.925]
[1688325953812,21.919,19.298,19.292,21.925]
[1688325954807,21.919,19.298,19.283,25.90858872]
[1688325954996,21.922,19.295,19.289,21.929]
[1688325955198,21.422,19.295,19.289,21.929]
[1688325955507,21.422,19.295,19.284,30.0]
[1688325955508,20.0,19.294,19.288,21.93]
[1688325955703,21.925,19.293,19.288,21.93]
[1688325956302,78.37,19.293,19.284,21.934]
[1688325956697,78.37,19.293,19.283,21.936]
[1688325957601,78.37,19.293,19.284,55.0]
[1688325958398,78.37,19.293,19.283,21.936]
[1688325958619,22.37,19.29,19.282,21.937]
[1688325958921,21.931,19.288,19.276,56.494]
[1688325959106,21.931,19.288,19.28,21.939]
[1688325960001,21.931,19.288,19.281,55.0]
[1688325960201,21.931,19.288,19.281,76.937]
[1688325966224,21.931,19.288,19.281,21.937]
[1688325968129,21.931,19.288,19.282,55.0]
[1688325968427,22.37,19.297,19.283,21.935]
[1688325968631,163.21076649,19.3,19.284,55.0]
[1688325968828,21.928,19.291,19.287,21.931]
[1688325969015,21.928,19.291,19.288,55.0]
[1688325970120,21.928,19.291,19.284,21.934]
[1688325970319,21.928,19.291,19.285,55.0]
[1688325971006,21.928,19.291,19.284,55.0]
[1688325972427,21.928,19.291,19.284,76.934]
[1688325978725,21.928,19.291,19.281,21.938]
[1688325979036,21.928,19.291,19.282,55.0]
[1688325980021,21.928,19.291,19.282,76.937]
[1688325986543,22.15,19.29,19.277,30.0]
[1688325986730,78.397,19.287,19.277,51.942]
[1688325986926,78.397,19.287,19.276,21.944]
[1688325986927,20.0,19.286,19.276,21.944]
[1688325987239,21.936,19.283,19.274,21.945]
[1688325988542,21.936,19.283,19.275,55.0]
[1688325988747,21.936,19.283,19.275,76.945]
[1688325991041,181.616,19.29,19.275,76.945]
[1688325991226,21.935,19.285,19.275,76.945]
[1688325991540,20.0,19.284,19.275,76.945]
[1688325991728,20.0,19.284,19.275,76.445]
[1688325992247,181.616,19.29,19.275,76.445]
[1688325992427,21.931,19.288,19.282,21.937]
[1688326001968,21.931,19.288,19.277,56.489]
[1688326002255,21.931,19.288,19.28,21.938]
[1688326002553,21.931,19.288,19.279,21.94]
[1688326013646,21.929,19.289,19.279,21.94]
[1688326013965,21.929,19.289,19.28,55.0]
[1688326014159,21.929,19.289,19.282,21.936]
[1688326027878,7.7562291,19.295,19.282,21.936]
[1688326028079,20.0,19.294,19.286,78.396]
[1688326028262,21.921,19.297,19.289,21.929]
[1688326028464,21.921,19.297,19.283,55.0]
[1688326028465,21.915,19.302,19.294,21.923]
[1688326029268,21.914,19.302,19.294,21.923]
[1688326029579,37.182084,19.308,19.295,55.0]
[1688326029763,20.0,19.307,19.298,21.918]
[1688326029963,21.912,19.305,19.298,21.918]
[1688326030182,20.0,19.304,19.298,21.918]
[1688326030471,41.913,19.304,19.298,21.918]
[1688326032079,41.913,19.304,19.295,55.0]
[1688326032281,41.913,19.304,19.297,21.92]
[1688326033478,41.913,19.304,19.298,55.0]
[1688326033676,41.913,19.304,19.299,21.917]
[1688326035182,41.913,19.304,19.296,21.921]
[1688326043093,20.0,19.304,19.299,21.918]
[1688326043395,20.0,19.304,19.297,111.433]
[1688326043396,20.0,19.303,19.301,21.915]
[1688326043693,41.911,19.305,19.301,21.915]
[1688326043996,21.912,19.304,19.3,21.917]
[1688326044174,20.0,19.303,19.3,21.917]
[1688326044380,20.0,19.303,19.301,55.0]
[1688326044891,20.0,19.303,19.3,21.917]
[1688326045087,41.914,19.303,19.298,21.918]
[1688326045391,41.914,19.303,19.294,21.922]
[1688326045594,41.914,19.303,19.29,78.703]
[1688326046090,41.914,19.303,19.294,21.923]
[1688326046488,41.914,19.303,19.29,22.25]
[1688326046691,41.914,19.303,19.293,21.924]
[1688326050286,20.0,19.303,19.293,78.369]
[1688326050496,21.913,19.303,19.294,55.0]
[1688326050696,21.913,19.303,19.296,21.92]
[1688326054192,21.913,19.303,19.29,22.25]
[1688326054521,21.913,19.303,19.287,56.46]
[1688326054522,22.15,19.3,19.283,103.042]
[1688326054795,21.922,19.295,19.287,21.931]
[1688326055004,21.926,19.293,19.287,21.931]
[1688326055593,21.924,19.294,19.287,21.931]
[1688326055907,20.0,19.293,19.289,21.929]
[1688326056405,21.918,19.3,19.289,21.929]
[1688326056602,21.918,19.3,19.295,21.922]
[1688326068503,21.915,19.302,19.296,55.0]
[1688326068706,21.915,19.302,19.298,21.918]
[1688326070110,21.915,19.302,19.296,76.92]
[1688326070308,21.915,19.302,19.296,55.0]
[1688326070498,21.915,19.302,19.295,55.0]
[1688326071102,21.915,19.302,19.297,21.92]
[1688326071816,21.912,19.304,19.299,21.917]
[1688326072001,20.0,19.303,19.299,21.917]
[1688326072197,41.914,19.303,19.297,21.919]
[1688326079022,41.914,19.303,19.296,21.921]
[1688326085419,41.914,19.303,19.293,21.924]
[1688326108945,41.914,19.303,19.295,21.921]
[1688326115850,41.914,19.303,19.294,21.923]
[1688326118047,41.914,19.303,19.293,21.925]
[1688326118852,41.914,19.303,19.294,55.0]
[1688326119055,41.914,19.303,19.295,21.921]
[1688326120356,41.914,19.303,19.295,21.922]
[1688326121458,41.914,19.303,19.294,21.923]
[1688326125161,22.24,19.3,19.285,56.466]
[1688326125361,181.332,19.296,19.286,30.0]
[1688326126064,20.0,19.295,19.286,30.0]
[1688326126270,21.925,19.293,19.286,21.932]
[1688326127367,21.925,19.293,19.285,21.934]
[1688326133492,21.925,19.293,19.28,22.4]
[1688326133790,21.925,19.293,19.283,21.936]
[1688326134888,21.925,19.293,19.286,21.932]
[1688326135574,21.925,19.293,19.281,111.479]
[1688326135575,21.925,19.293,19.285,21.934]
[1688326135787,21.925,19.293,19.284,21.935]
[1688326137192,78.389,19.289,19.279,21.94]
[1688326137376,78.389,19.289,19.28,30.0]
[1688326138292,78.389,19.289,19.278,21.941]
[1688326141893,21.93,19.289,19.278,21.941]
[1688326144696,21.93,19.289,19.282,21.937]
[1688326152313,21.93,19.289,19.276,56.494]
[1688326152608,21.93,19.289,19.279,21.94]
[1688326156907,20.0,19.288,19.277,21.942]
[1688326157093,21.935,19.284,19.276,21.944]
[1688326157293,21.938,19.281,19.276,21.944]
[1688326158211,21.938,19.281,19.275,21.945]
[1688326159800,21.938,19.281,19.27,78.77]
[1688326160124,21.938,19.281,19.271,55.0]
[1688326161209,21.938,19.281,19.274,21.946]
[1688326166418,21.938,19.281,19.268,202.1981]
[1688326166419,22.42,19.28,19.268,21.952]
[1688326166713,78.436,19.277,19.268,21.953]
[1688326167608,78.436,19.277,19.268,21.453]
[1688326175407,78.436,19.277,19.268,21.952]
[1688326175719,21.943,19.277,19.268,21.952]
[1688326178819,21.943,19.277,19.266,21.954]
[1688326179027,20.0,19.276,19.265,30.0]
[1688326179326,78.452,19.273,19.265,30.0]
[1688326179704,78.452,19.273,19.26,22.24]
[1688326180003,78.452,19.273,19.261,30.0]
[1688326180820,78.452,19.273,19.26,22.24]
[1688326181220,78.452,19.273,19.264,21.957]
[1688326186021,78.452,19.273,19.265,55.0]
[1688326186322,78.452,19.273,19.265,76.956]
[1688326190631,26.00098657,19.287,19.265,76.956]
[1688326190841,20.0,19.286,19.27,22.24]
[1688326191122,21.941,19.279,19.274,21.945]
[1688326193230,20.0,19.286,19.275,55.0]
[1688326193231,21.933,19.286,19.275,55.0]
[1688326193413,21.931,19.287,19.28,44.199]
[1688326193726,21.93,19.289,19.281,55.0]
[1688326193928,21.93,19.289,19.284,21.934]
[1688326195317,21.928,19.29,19.284,21.934]
[1688326203723,21.927,19.291,19.284,21.934]
[1688326204027,21.927,19.291,19.285,55.0]
[1688326204337,7.76619413,19.297,19.286,21.932]
[1688326204831,21.926,19.292,19.286,21.932]
[1688326206342,21.926,19.292,19.287,55.0]
[1688326206542,21.926,19.292,19.287,76.93]
[1688326208540,21.926,19.292,19.28,22.26]
[1688326208935,21.926,19.292,19.284,21.935]
[1688326210036,21.926,19.292,19.285,55.0]
[1688326214952,21.926,19.292,19.284,21.935]
[1688326215537,21.926,19.292,19.28,22.26]
[1688326216848,21.926,19.292,19.28,44.199]
[1688326217254,21.926,19.292,19.28,21.939]
[1688326219060,21.926,19.292,19.28,44.179]
[1688326219555,21.926,19.292,19.284,21.934]
[1688326220562,21.926,19.292,19.285,55.0]
[1688326220861,21.926,19.292,19.285,76.933]
[1688326235353,21.926,19.292,19.285,55.0]
[1688326236570,21.926,19.292,19.284,21.935]
[1688326238555,21.926,19.292,19.28,22.24]
[1688326238756,21.926,19.292,19.282,21.936]
[1688326239079,21.926,19.292,19.283,55.0]
[1688326241070,21.926,19.292,19.283,76.936]
[1688326257670,21.926,19.292,19.283,21.936]
[1688326259888,124.922,19.292,19.28,22.24]
[1688326260294,124.922,19.292,19.281,55.0]
[1688326261189,124.922,19.292,19.282,21.937]
[1688326263489,22.42,19.29,19.281,21.938]
[1688326263682,21.931,19.288,19.281,21.938]
[1688326271298,21.931,19.288,19.275,56.495]
[1688326271504,20.0,19.287,19.275,56.495]
[1688326271798,21.935,19.284,19.278,21.941]
[1688326272007,20.0,19.283,19.278,21.941]
[1688326272298,21.938,19.282,19.278,21.941]
[1688326273401,21.936,19.283,19.278,21.941]
[1688326273598,21.935,19.284,19.278,21.941]
[1688326275599,21.933,19.286,19.278,21.941]
[1688326275803,21.931,19.288,19.279,55.0]
[1688326276005,21.931,19.288,19.281,21.937]
[1688326276300,21.931,19.288,19.283,21.935]
[1688326276609,21.931,19.288,19.284,55.0]
[1688326276802,21.931,19.288,19.284,76.934]
[1688326280511,21.931,19.288,19.284,21.934]
[1688326282513,21.931,19.288,19.28,22.24]
[1688326282693,21.931,19.288,19.281,85.0]
[1688326284094,21.931,19.288,19.283,21.935]
[1688326284412,21.931,19.288,19.284,55.0]
[1688326284707,21.931,19.288,19.284,76.934]
[1688326284909,21.931,19.288,19.284,21.934]
[1688326291215,21.931,19.288,19.28,22.24]
[1688326291216,21.931,19.288,19.282,21.936]
[1688326299515,21.929,19.289,19.282,21.936]
[1688326299713,21.928,19.29,19.286,21.932]
[1688326302416,21.928,19.29,19.284,21.934]
[1688326312623,21.928,19.29,19.283,21.936]
[1688326323646,21.928,19.29,19.284,55.0]
[1688326323943,21.928,19.29,19.285,21.933]
[1688326325538,21.928,19.29,19.28,78.722]
[1688326325747,21.928,19.29,19.281,85.0]
[1688326325929,21.928,19.29,19.281,51.937]
[1688326329648,21.928,19.29,19.281,21.937]
[1688326330544,21.928,19.29,19.282,55.0]
[1688326330841,21.928,19.29,19.284,21.934]
[1688326335151,21.928,19.29,19.28,22.24]
[1688326335344,21.928,19.29,19.281,85.0]
[1688326336244,21.928,19.29,19.282,21.937]
[1688326337153,21.928,19.29,19.281,30.0]
[1688326337346,75.0,19.289,19.27,22.26]
[1688326337656,78.406,19.284,19.274,30.0]
[1688326338159,86.12682822,19.284,19.274,30.0]
[1688326338860,86.12682822,19.284,19.253,1000.8]
[1688326338861,22.42,19.28,19.26,22.24]
[1688326339044,56.488,19.279,19.263,125.109]
[1688326339247,21.948,19.273,19.263,21.958]
[1688326339552,21.948,19.273,19.262,30.0]
[1688326339943,21.948,19.273,19.26,22.24]
[1688326340146,21.948,19.273,19.258,96.6245]
[1688326340440,21.948,19.273,19.259,51.962]
[1688326341352,21.948,19.273,19.259,21.962]
[1688326342158,22.37,19.27,19.259,21.962]
[1688326342454,21.954,19.267,19.259,21.962]
[1688326342839,21.958,19.264,19.259,21.962]
[1688326343045,41.959,19.263,19.259,21.962]
[1688326343243,78.492,19.263,19.255,21.967]
[1688326343640,78.492,19.263,19.25,22.24]
[1688326343838,78.492,19.263,19.251,28.5]
[1688326344058,78.492,19.263,19.251,27.0]
[1688326344446,78.492,19.263,19.25,22.24]
[1688326345265,21.959,19.263,19.254,21.968]
[1688326346167,21.959,19.263,19.255,55.0]
[1688326346456,21.959,19.263,19.257,21.965]
[1688326347041,21.959,19.263,19.25,22.24]
[1688326348157,21.959,19.263,19.254,21.968]
[1688326348360,21.959,19.263,19.252,21.97]
[1688326349557,21.959,19.263,19.253,55.0]
[1688326349746,21.959,19.263,19.255,21.967]
[1688326358353,21.959,19.263,19.256,55.0]
[1688326358554,21.959,19.263,19.256,76.966]
[1688326359251,98.873,19.269,19.256,76.966]
[1688326359252,22.42,19.28,19.256,76.966]
[1688326359557,21.953,19.269,19.262,21.959]
[1688326359754,21.953,19.269,19.263,76.958]
[1688326367574,21.953,19.269,19.263,21.958]
[1688326367879,21.953,19.269,19.261,21.96]
[1688326378065,21.953,19.269,19.264,21.957]
[1688326378274,21.951,19.271,19.264,21.957]
[1688326378886,21.951,19.271,19.265,55.0]
[1688326379092,21.951,19.271,19.266,21.954]
[1688326380784,21.951,19.271,19.265,21.956]
[1688326382478,21.951,19.271,19.264,21.957]
[1688326387975,20.0,19.275,19.26,22.24]
[1688326388177,21.951,19.271,19.264,21.957]
[1688326390691,21.951,19.271,19.265,55.0]
[1688326390989,21.951,19.271,19.266,21.954]
[1688326393188,21.951,19.271,19.265,55.0]
[1688326393394,21.951,19.271,19.263,21.958]
[1688326405586,21.951,19.271,19.264,55.0]
[1688326405797,21.951,19.271,19.266,21.955]
[1688326413184,21.951,19.271,19.261,56.538]
[1688326413705,21.951,19.271,19.262,55.0]
[1688326414188,21.951,19.271,19.265,21.956]
[1688326419508,21.951,19.271,19.266,55.0]
[1688326419805,21.951,19.271,19.267,21.954]
[1688326422104,21.941,19.279,19.268,55.0]
[1688326422407,103.039,19.284,19.268,55.0]
[1688326422408,21.938,19.282,19.275,21.944]
[1688326422612,21.938,19.282,19.276,55.0]
[1688326422804,21.938,19.282,19.277,21.942]
[1688326423008,21.938,19.282,19.278,55.0]
[1688326423708,21.938,19.282,19.276,21.944]
[1688326423908,21.938,19.282,19.274,21.946]
[1688326424112,21.938,19.282,19.273,21.947]
[1688326425514,21.938,19.282,19.271,21.949]
[1688326425515,124.987,19.282,19.271,21.949]
[1688326441302,21.938,19.282,19.271,21.949]
[1688326441508,21.938,19.282,19.27,44.191]
[1688326441822,21.938,19.282,19.272,21.948]
[1688326445717,22.37,19.28,19.271,21.949]
[1688326445920,21.943,19.277,19.27,21.951]
[1688326446123,20.0,19.276,19.27,21.951]
[1688326446323,21.946,19.275,19.27,21.951]
[1688326446527,20.0,19.274,19.27,21.951]
[1688326446824,41.947,19.274,19.27,21.951]
[1688326448025,41.947,19.274,19.269,21.952]
[1688326451529,41.947,19.274,19.268,21.953]
[1688326452411,20.0,19.274,19.268,21.953]
[1688326452615,20.0,19.274,19.269,55.0]
[1688326452815,20.0,19.274,19.27,21.95]
[1688326453020,20.0,19.274,19.271,55.0]
[1688326453219,20.0,19.274,19.271,76.949]
[1688326453622,41.947,19.274,19.271,76.949]
[1688326454829,41.947,19.274,19.271,55.0]
[1688326456729,21.947,19.274,19.271,55.0]
[1688326459016,21.947,19.274,19.27,55.0]
[1688326460428,159.537,19.281,19.27,76.951]
[1688326460630,159.537,19.281,19.27,99.191]
[1688326461128,21.944,19.277,19.27,99.191]
[1688326467342,62.19925872,19.29,19.27,99.191]
[1688326467528,21.935,19.285,19.27,99.191]
[1688326467833,20.0,19.288,19.28,22.24]
[1688326467834,21.931,19.288,19.28,22.24]
[1688326468026,21.931,19.288,19.284,21.934]
[1688326468338,155.5474,19.295,19.284,21.934]
[1688326468536,155.5474,19.295,19.281,111.478]
[1688326468537,21.927,19.292,19.287,21.931]
[1688326468734,21.927,19.292,19.285,76.933]
[1688326477348,21.927,19.292,19.285,21.933]
[1688326477943,21.927,19.292,19.28,22.24]
[1688326478133,21.927,19.292,19.281,30.0]
[1688326479142,21.927,19.292,19.282,21.936]
[1688326489156,21.927,19.292,19.283,55.0]
[1688326489455,21.927,19.292,19.285,21.933]
[1688326491951,21.926,19.293,19.285,21.933]
[1688326492155,56.433,19.298,19.286,55.0]
[1688326492156,21.924,19.294,19.286,55.0]
[1688326492351,21.924,19.294,19.288,21.93]
[1688326492543,21.924,19.294,19.289,55.0]
[1688326492742,21.924,19.294,19.289,76.928]
[1688326495161,21.924,19.294,19.289,55.0]
[1688326501766,21.924,19.294,19.281,97.4204]
[1688326501767,21.924,19.294,19.281,153.8984]
[1688326501953,21.924,19.294,19.282,30.0]
[1688326503250,21.924,19.294,19.285,21.933]
[1688326503748,21.924,19.294,19.286,55.0]
[1688326504658,21.924,19.294,19.281,97.4204]
[1688326504864,21.924,19.294,19.282,55.0]
[1688326505168,21.924,19.294,19.282,21.937]
[1688326506667,21.924,19.294,19.283,55.0]
[1688326508850,21.924,19.294,19.283,76.936]
[1688326519980,22.42,19.3,19.283,76.936]
[1688326520278,21.924,19.294,19.283,76.936]
[1688326523175,21.924,19.294,19.283,21.936]
[1688326524457,21.924,19.294,19.284,55.0]
[1688326524662,21.924,19.294,19.285,21.933]
[1688326524862,21.924,19.294,19.286,55.0]
[1688326526962,21.924,19.294,19.285,21.933]
[1688326527362,21.916,19.301,19.286,55.0]
[1688326527581,21.916,19.301,19.294,21.923]
[1688326527768,56.406,19.307,19.295,55.0]
[1688326527970,21.912,19.304,19.298,21.918]
[1688326528170,22.42,19.31,19.298,21.918]
[1688326528171,21.911,19.305,19.299,55.0]
[1688326528386,21.911,19.305,19.3,21.916]
[1688326528684,21.911,19.305,19.298,21.918]
[1688326528886,21.911,19.305,19.299,76.917]
[1688326529882,41.913,19.304,19.299,76.917]
[1688326534076,20.0,19.304,19.299,76.917]
[1688326534289,20.0,19.305,19.299,76.917]
[1688326535186,21.909,19.307,19.299,76.917]
[1688326535372,159.262,19.314,19.304,21.912]
[1688326535569,21.906,19.31,19.306,21.91]
[1688326535792,21.906,19.31,19.307,55.0]
[1688326537893,21.906,19.31,19.305,21.911]
[1688326538074,21.906,19.31,19.306,55.0]
[1688326539493,21.906,19.31,19.306,76.91]